bitfinex-derivatives/quotes_ETHF0:USTF0_20240923
["timestamp","ask_amount","ask_price","bid_price","bid_amount"]
[1727076371873,0.94552,2643.9,2643.3,5.2778]
[1727076372075,0.37826,2643.6,2643.3,5.2778]
[1727076372465,0.37824,2643.7,2643.3,5.65609]
[1727076373276,0.37824,2643.7,2643.3,3.58609]
[1727076373483,3.2078,2643.7,2643.1,0.3698]
[1727076374171,0.37831,2643.2,2643.1,0.3698]
[1727076374370,0.37828,2643.4,2643.1,0.3698]
[1727076375184,0.3673,2644.0,2643.2,5.8532]
[1727076375485,0.37824,2643.7,2643.5,2.07]
[1727076375671,0.37824,2643.7,2643.6,0.7915]
[1727076376071,0.37824,2643.7,2643.6,4.5739]
[1727076376470,0.37823,2643.8,2643.6,4.5739]
[1727076376682,0.37823,2643.8,2643.6,0.7915]
[1727076377475,0.37823,2643.8,2643.6,1.1685]
[1727076377676,0.37821,2643.9,2643.6,1.1685]
[1727076377979,0.37822,2643.8,2643.6,1.1685]
[1727076378278,0.37822,2643.8,2643.7,2.07]
[1727076378492,3.2078,2644.1,2643.7,2.07]
[1727076378493,0.3782,2644.0,2643.7,2.07]
[1727076378875,4.52673,2644.5,2643.9,2.07]
[1727076378876,0.37819,2644.1,2643.9,2.07]
[1727076379075,0.37811,2644.6,2644.1,0.37816]
[1727076379277,0.75778,2644.8,2644.4,2.07]
[1727076379585,0.37808,2644.8,2644.7,2.07]
[1727076380280,0.3903,2645.1,2644.7,2.07]
[1727076380576,0.3903,2645.1,2644.6,3.2078]
[1727076380781,0.37809,2644.7,2644.6,3.2078]
[1727076380981,0.3903,2645.1,2644.5,42.87]
[1727076380982,0.37811,2644.6,2644.5,42.87]
[1727076381185,0.37811,2644.6,2644.5,40.8]
[1727076381775,0.37814,2644.4,2644.2,0.7756]
[1727076382379,0.36,2644.5,2644.2,0.7756]
[1727076382380,0.37815,2644.3,2644.2,0.7756]
[1727076382577,0.37815,2644.3,2644.2,0.3773]
[1727076382779,3.5678,2644.5,2643.8,2.8455]
[1727076382978,3.5678,2644.5,2643.9,0.3618]
[1727076383286,3.5678,2644.5,2643.9,41.1618]
[1727076383287,0.94534,2644.4,2643.9,41.1618]
[1727076383478,2.07,2644.4,2643.6,2.07]
[1727076383683,0.37823,2643.7,2643.6,2.07]
[1727076383984,0.37823,2643.7,2643.6,42.87]
[1727076384187,0.37821,2643.9,2643.6,46.6524]
[1727076384488,0.37819,2644.0,2643.6,42.87]
[1727076384789,0.37821,2643.9,2643.6,42.87]
[1727076386181,0.3851,2644.1,2643.6,42.87]
[1727076386182,0.37823,2643.8,2643.6,42.87]
[1727076386385,0.37821,2643.9,2643.6,42.87]
[1727076387489,0.37823,2643.8,2643.6,42.87]
[1727076387688,0.3959,2644.0,2643.6,42.87]
[1727076387689,0.37823,2643.7,2643.6,42.87]
[1727076387894,0.3926,2643.9,2643.4,5.2778]
[1727076388188,0.37826,2643.6,2643.4,2.07]
[1727076388787,0.3959,2644.0,2643.4,5.2778]
[1727076389089,0.37823,2643.8,2643.6,2.07]
[1727076389496,0.37823,2643.7,2643.6,2.07]
[1727076389884,0.37823,2643.8,2643.6,2.07]
[1727076390080,0.37823,2643.7,2643.6,2.07]
[1727076391993,0.37825,2643.6,2643.4,2.07]
[1727076393682,0.37824,2643.7,2643.4,2.07]
[1727076393982,0.37823,2643.8,2643.4,5.2778]
[1727076394183,0.37823,2643.8,2643.6,2.07]
[1727076394981,0.3959,2644.0,2643.6,2.07]
[1727076394982,0.37823,2643.7,2643.6,2.07]
[1727076396992,0.37823,2643.8,2643.6,2.07]
[1727076397786,0.37823,2643.7,2643.6,2.07]
[1727076397994,0.37823,2643.8,2643.6,2.07]
[1727076398197,0.37822,2643.9,2643.6,2.07]
[1727076398385,0.37823,2643.8,2643.6,2.07]
[1727076398881,0.37823,2643.7,2643.6,2.07]
[1727076399687,0.37823,2643.7,2643.4,4.19347789]
[1727076399688,0.94552,2643.9,2643.4,3.05567789]
[1727076399889,0.37826,2643.5,2643.4,2.07]
[1727076400495,0.37826,2643.5,2643.4,3.05567789]
[1727076400787,0.37826,2643.5,2643.4,2.07]
[1727076401088,0.3959,2644.0,2643.4,6.26347789]
[1727076401290,0.7741,2644.0,2643.6,2.07]
[1727076401485,0.7741,2644.0,2643.8,2.07]
[1727076401691,0.3926,2644.2,2643.9,0.3948]
[1727076401889,0.3926,2644.2,2643.6,0.98929417]
[1727076402086,0.3926,2644.2,2643.4,4.57809417]
[1727076402087,0.37826,2643.5,2643.4,4.57809417]
[1727076402688,0.37826,2643.5,2643.4,1.37029417]
[1727076402886,0.37826,2643.5,2643.4,0.381]
[1727076403084,0.37826,2643.5,2643.4,1.37029417]
[1727076403689,0.393,2643.8,2643.4,2.55628331]
[1727076403884,0.77123,2643.8,2643.4,1.37029417]
[1727076404096,0.37824,2643.7,2643.4,1.37029417]
[1727076404292,0.393,2643.8,2643.4,1.37029417]
[1727076404493,0.37826,2643.5,2643.4,1.37029417]
[1727076405197,0.37823,2643.7,2643.4,1.37029417]
[1727076405496,0.393,2643.8,2643.4,1.37029417]
[1727076405897,0.37825,2643.7,2643.4,1.37029417]
[1727076406197,0.37825,2643.6,2643.4,1.37029417]
[1727076407503,0.37826,2643.5,2643.4,1.37029417]
[1727076408595,0.37826,2643.6,2643.4,1.37029417]
[1727076408902,0.37826,2643.5,2643.4,1.37029417]
[1727076409112,3.2078,2643.5,2643.2,0.98929417]
[1727076409398,3.2078,2643.5,2643.1,0.3714]
[1727076409399,0.37831,2643.2,2643.1,0.3714]
[1727076410402,0.37831,2643.2,2643.0,3.2078]
[1727076411805,0.7623,2643.3,2643.0,3.2078]
[1727076412402,0.384,2643.3,2643.0,3.2078]
[1727076412595,0.384,2643.3,2643.0,3.5729]
[1727076412804,0.37828,2643.4,2643.0,5.6429]
[1727076413793,1.34663142,2643.6,2643.0,5.6429]
[1727076413996,7.15189923,2643.8,2643.5,2.44825]
[1727076414194,3.2078,2643.8,2643.7,2.07]
[1727076414402,0.3671,2644.3,2643.7,2.07]
[1727076414702,0.37817,2644.2,2643.7,2.07]
[1727076414896,4.52028,2644.3,2643.8,40.8]
[1727076415097,0.37822,2643.9,2643.8,40.8]
[1727076416106,0.3782,2644.0,2643.8,40.8]
[1727076416309,4.55153142,2644.3,2643.8,40.8]
[1727076416507,0.37821,2643.9,2643.8,40.8]
[1727076417207,4.55153142,2644.3,2643.8,40.8]
[1727076417208,0.3782,2644.0,2643.8,40.8]
[1727076417609,0.37821,2643.9,2643.8,40.8]
[1727076419508,0.94542,2644.2,2643.6,1.1185]
[1727076419509,0.94542,2644.2,2643.6,1.72579417]
[1727076419809,4.55153142,2644.3,2643.6,0.7365]
[1727076419810,3.2078,2644.0,2643.6,0.7365]
[1727076420305,0.37823,2643.7,2643.6,1.72579417]
[1727076420510,0.37823,2643.7,2643.6,0.7365]
[1727076421810,0.37823,2643.8,2643.6,0.7365]
[1727076422110,0.3782,2644.0,2643.7,42.87]
[1727076422313,0.3782,2644.0,2643.7,43.2302]
[1727076422718,4.92073065,2644.4,2643.9,2.07]
[1727076422900,9.40821714,2644.6,2643.9,3.05929417]
[1727076422901,2.29360142,2644.6,2643.9,3.05929417]
[1727076423107,0.37815,2644.3,2643.9,3.05929417]
[1727076423308,0.97663142,2644.6,2644.2,2.07]
[1727076423615,3.2078,2644.7,2644.4,2.07]
[1727076423906,3.2078,2644.7,2644.3,1.1244]
[1727076424116,0.37813,2644.4,2644.3,0.7597]
[1727076424711,0.37813,2644.5,2644.3,0.7597]
[1727076425510,0.37813,2644.4,2644.3,0.7597]
[1727076426513,0.3931,2644.6,2644.3,4.5413]
[1727076426708,0.77122,2644.6,2644.3,0.7597]
[1727076427212,3.5859,2644.7,2644.3,1.74899417]
[1727076427421,0.3781,2644.7,2644.3,1.74899417]
[1727076427712,0.37811,2644.6,2644.3,4.95679417]
[1727076427912,0.37811,2644.6,2644.3,1.74899417]
[1727076428112,0.37813,2644.5,2644.3,1.74899417]
[1727076428309,0.37813,2644.5,2644.3,0.7597]
[1727076431113,0.37813,2644.4,2644.3,0.7597]
[1727076431705,0.37813,2644.4,2644.3,0.3985]
[1727076432118,6.9894,2644.4,2644.0,0.98929417]
[1727076432316,0.7685,2644.3,2643.9,0.7596]
[1727076432709,0.37818,2644.1,2643.9,0.7596]
[1727076434115,0.37813,2644.5,2643.9,4.95669417]
[1727076434318,0.37813,2644.5,2644.1,2.07]
[1727076434621,0.37813,2644.5,2644.2,0.3905]
[1727076436118,0.3834,2644.7,2644.2,0.3905]
[1727076436319,0.37813,2644.5,2644.2,0.3905]
[1727076437018,0.3834,2644.7,2644.2,0.3905]
[1727076437321,0.37815,2644.3,2643.9,7.02669417]
[1727076437528,0.37815,2644.3,2643.9,7.40559417]
[1727076438019,3.2078,2644.5,2643.9,7.40559417]
[1727076438214,0.37816,2644.3,2643.9,7.40559417]
[1727076438628,0.37816,2644.3,2643.9,4.19779417]
[1727076438828,0.37816,2644.3,2643.9,3.2085]
[1727076439231,3.2078,2644.5,2643.9,4.19779417]
[1727076439534,0.37813,2644.5,2643.9,4.19779417]
[1727076439855,0.37813,2644.5,2644.2,2.07]
[1727076440332,3.2078,2644.8,2644.2,2.44816]
[1727076440535,0.37809,2644.8,2644.2,2.07]
[1727076440828,0.3671,2644.9,2644.2,3.43745417]
[1727076441035,0.37809,2644.7,2644.2,3.43745417]
[1727076441743,3.2078,2644.8,2644.2,2.07]
[1727076441926,0.94523,2644.7,2644.1,3.2078]
[1727076442235,0.94528,2644.6,2643.9,2.12779417]
[1727076442432,0.37816,2644.2,2643.9,2.12779417]
[1727076442635,0.37818,2644.1,2643.9,1.1385]
[1727076443334,0.37817,2644.2,2643.9,1.1385]
[1727076443541,0.37816,2644.3,2643.9,1.1385]
[1727076443936,0.76754,2644.4,2643.9,3.2085]
[1727076444127,0.37815,2644.3,2643.9,3.2085]
[1727076444842,0.37815,2644.3,2643.9,6.4163]
[1727076445641,0.37816,2644.2,2643.9,6.4163]
[1727076446244,0.3894,2644.4,2643.9,0.7596]
[1727076446245,0.37819,2644.0,2643.9,0.7596]
[1727076446447,0.37819,2644.0,2643.9,0.3618]
[1727076447046,0.37822,2643.8,2643.7,40.8]
[1727076447246,0.37822,2643.8,2643.6,4.3651]
[1727076447541,0.37822,2643.9,2643.6,4.3651]
[1727076447732,0.37822,2643.9,2643.6,45.1651]
[1727076447934,0.3792,2644.0,2643.6,45.1651]
[1727076447935,0.3782,2644.0,2643.6,45.1651]
[1727076448335,0.3633,2644.3,2643.6,47.2351]
[1727076448634,0.37815,2644.3,2643.9,2.07]
[1727076449540,3.58592,2644.5,2644.1,2.07]
[1727076449749,3.58592,2644.5,2644.2,1.1285]
[1727076450135,0.37815,2644.3,2644.2,0.3705]
[1727076450532,0.37817,2644.2,2643.9,6.0313]
[1727076450737,0.37817,2644.2,2644.0,0.3641]
[1727076451533,0.37815,2644.3,2644.0,0.3641]
[1727076451750,0.37817,2644.2,2644.0,0.3641]
[1727076458543,0.37817,2644.2,2644.0,1.35339417]
[1727076459144,0.37815,2644.3,2644.0,1.35339417]
[1727076459350,0.37817,2644.2,2644.0,1.35339417]
[1727076459644,0.37817,2644.2,2644.1,0.98929417]
[1727076460442,0.387,2644.4,2644.1,0.98929417]
[1727076460646,0.37816,2644.3,2644.1,0.98929417]
[1727076460851,0.37816,2644.2,2644.1,0.98929417]
[1727076461347,0.387,2644.4,2644.1,0.98929417]
[1727076461348,0.37815,2644.3,2644.1,2.17955919]
[1727076461552,0.37815,2644.3,2644.1,0.98929417]
[1727076461942,0.37815,2644.3,2644.1,0.99086]
[1727076461943,0.37816,2644.3,2644.1,0.99086]
[1727076462153,0.37816,2644.2,2644.1,0.99086]
[1727076463756,0.37816,2644.3,2644.1,0.99086]
[1727076463954,0.37816,2644.2,2644.0,1.35496]
[1727076464144,0.97663142,2644.3,2644.0,1.35496]
[1727076464348,0.37816,2644.2,2644.0,1.35496]
[1727076465155,0.37817,2644.2,2644.0,1.35496]
[1727076465949,0.37817,2644.2,2644.1,0.99086]
[1727076467056,0.37815,2644.3,2644.1,0.99086]
[1727076467356,0.37816,2644.2,2644.1,0.99086]
[1727076468050,0.37815,2644.3,2644.1,3.16832678]
[1727076468260,0.37815,2644.3,2644.2,0.99129502]
[1727076469051,0.37815,2644.3,2644.2,2.18225543]
[1727076469860,0.37815,2644.3,2644.2,0.99129502]
[1727076470159,0.97663142,2644.6,2644.4,0.37813]
[1727076470358,9.9715278,2645.0,2644.6,0.37811]
[1727076470359,0.97663142,2644.9,2644.6,0.37811]
[1727076470560,0.97663142,2644.9,2644.7,0.99120183]
[1727076470754,0.97663142,2644.9,2644.7,1.37150183]
[1727076471055,3.2078,2645.0,2644.7,1.37150183]
[1727076471056,3.2078,2645.0,2644.8,2.18194054]
[1727076471264,3.2078,2645.0,2644.8,3.06115256]
[1727076471461,3.2078,2645.0,2644.9,40.8]
[1727076471758,0.97663142,2645.1,2644.9,41.79115256]
[1727076471955,0.97663142,2645.3,2645.0,3.83345256]
[1727076472152,0.97663142,2645.3,2645.2,2.07]
[1727076472352,1.35463142,2645.4,2645.2,2.07]
[1727076472761,1.35463142,2645.4,2645.0,3.83345256]
[1727076473364,0.378,2645.4,2645.0,3.83345256]
[1727076474355,0.378,2645.4,2645.0,2.8423]
[1727076475559,0.37803,2645.1,2644.9,0.99115256]
[1727076475866,0.37803,2645.1,2644.8,0.3925]
[1727076477368,0.37805,2645.0,2644.8,0.3925]
[1727076478561,3.2078,2645.1,2644.5,2.47795531]
[1727076478763,0.37808,2644.8,2644.5,0.99115256]
[1727076479068,0.37808,2644.8,2644.4,42.55175256]
[1727076479259,3.2078,2644.8,2644.4,0.7606]
[1727076479461,0.37812,2644.5,2644.4,0.7606]
[1727076480064,0.37811,2644.6,2644.4,0.7606]
[1727076482180,0.3922,2644.9,2644.4,0.7606]
[1727076482580,0.77027,2644.9,2644.4,1.13873]
[1727076482878,0.37808,2644.8,2644.4,0.7606]
[1727076483077,0.3781,2644.7,2644.4,0.7606]
[1727076483269,0.37811,2644.6,2644.4,0.7606]
[1727076485083,3.2078,2645.0,2644.5,2.07]
[1727076485283,3.2078,2645.0,2644.6,1.36925256]
[1727076485576,3.2078,2645.0,2644.8,2.44807]
[1727076485791,3.2078,2645.0,2644.9,0.7757]
[1727076486078,0.3833,2645.2,2644.9,1.1669]
[1727076486276,0.37805,2645.0,2644.9,1.1669]
[1727076487177,0.3833,2645.2,2644.6,0.99115256]
[1727076487377,0.37809,2644.7,2644.5,1.74775256]
[1727076487586,0.37809,2644.7,2644.5,0.7566]
[1727076488076,0.37809,2644.8,2644.5,0.7566]
[1727076488781,0.37809,2644.7,2644.5,0.7566]
[1727076489177,0.37811,2644.6,2644.5,0.7566]
[1727076489381,0.94513,2645.0,2644.5,0.7566]
[1727076489382,0.7443,2644.9,2644.5,0.7566]
[1727076489580,0.37811,2644.6,2644.5,0.7566]
[1727076489782,0.7443,2644.9,2644.5,0.7566]
[1727076489976,0.97663142,2645.4,2644.8,2.07]
[1727076490184,0.3675,2645.4,2644.9,0.77146]
[1727076490383,0.74549,2645.4,2645.0,0.3748]
[1727076490587,0.74549,2645.4,2645.0,0.7719]
[1727076490880,0.3675,2645.4,2645.0,0.7719]
[1727076491183,0.3675,2645.4,2645.0,1.14995]
[1727076491576,0.7455,2645.4,2645.0,0.7719]
[1727076491779,0.7455,2645.4,2645.1,2.07]
[1727076492783,3.596,2645.6,2645.1,2.07]
[1727076493089,3.58577,2645.6,2645.2,0.37802]
[1727076493285,3.58577,2645.6,2645.1,2.44803]
[1727076493780,3.2078,2645.6,2645.1,2.44803]
[1727076493980,3.58577,2645.6,2645.1,2.44803]
[1727076494287,3.58577,2645.6,2645.3,2.07]
[1727076494587,0.37797,2645.6,2645.4,0.3893]
[1727076494790,0.37798,2645.5,2645.4,0.7841]
[1727076495778,0.37797,2645.6,2645.4,0.7841]
[1727076496283,0.74546,2645.7,2645.4,0.7841]
[1727076496489,0.3675,2645.7,2645.4,0.7841]
[1727076496789,0.37795,2645.8,2645.4,0.7841]
[1727076496983,5.29866065,2645.9,2645.5,42.87]
[1727076497185,4.92073065,2645.9,2645.5,42.87]
[1727076497383,0.37793,2645.8,2645.5,42.87]
[1727076497589,0.37795,2645.7,2645.5,42.87]
[1727076498088,0.37796,2645.7,2645.5,40.8]
[1727076498280,0.3649,2645.6,2645.5,40.8]
[1727076498788,1.35456142,2645.9,2645.5,42.87]
[1727076498985,1.71946142,2645.9,2645.5,42.87]
[1727076500689,1.34153142,2645.9,2645.5,43.24797]
[1727076501380,0.97663142,2645.9,2645.7,2.07]
[1727076501784,0.97663142,2645.9,2645.8,0.3688]
[1727076503187,1.35455142,2645.9,2645.8,0.3688]
[1727076504284,0.97663142,2645.9,2645.8,0.3688]
[1727076504484,0.97663142,2645.9,2645.5,44.0078]
[1727076504485,0.37793,2645.8,2645.5,44.0078]
[1727076504694,0.76944,2645.8,2645.5,44.39]
[1727076505595,0.37795,2645.7,2645.5,44.39]
[1727076505893,0.76944,2645.8,2645.5,44.39]
[1727076506194,0.37795,2645.7,2645.5,41.1822]
[1727076506385,0.76944,2645.8,2645.5,41.1822]
[1727076506786,0.37801,2645.3,2645.2,3.2078]
[1727076506984,0.37802,2645.2,2644.8,0.7728]
[1727076507187,0.37801,2645.3,2644.8,0.7728]
[1727076507384,0.37801,2645.3,2644.9,40.8]
[1727076507896,0.37801,2645.3,2644.9,42.87]
[1727076508391,0.37801,2645.3,2645.0,0.3977]
[1727076511194,0.94496,2645.5,2645.0,0.3977]
[1727076511588,0.3838,2645.4,2645.0,0.3977]
[1727076512889,0.37803,2645.2,2645.0,0.3977]
[1727076513090,0.37801,2645.3,2645.0,0.3977]
[1727076513697,0.3838,2645.4,2645.0,0.3977]
[1727076513698,3.5916,2645.4,2645.0,0.3977]
[1727076514005,0.37803,2645.1,2645.0,0.3977]
[1727076514296,0.37803,2645.2,2645.0,0.3977]
[1727076514496,3.5916,2645.4,2645.0,0.3977]
[1727076514497,0.37801,2645.3,2645.0,0.3977]
[1727076514696,0.37801,2645.3,2645.0,41.1977]
[1727076514895,0.76179,2645.4,2645.0,41.1977]
[1727076515291,0.3838,2645.4,2645.0,41.1977]
[1727076515593,0.37798,2645.5,2645.0,41.57575]
[1727076515798,0.37798,2645.5,2645.2,2.07]
[1727076516103,0.37797,2645.6,2645.3,0.3935]
[1727076516301,0.37797,2645.6,2645.3,0.7882]
[1727076516791,0.37798,2645.5,2645.3,0.7882]
[1727076517093,0.37797,2645.6,2645.3,0.7882]
[1727076518296,0.37798,2645.5,2645.3,0.7882]
[1727076518692,0.37797,2645.6,2645.3,0.7882]
[1727076518894,3.58575,2645.7,2645.3,0.7882]
[1727076519502,0.37796,2645.6,2645.3,0.7882]
[1727076519706,3.58575,2645.7,2645.3,0.7882]
[1727076519903,3.58575,2645.7,2645.3,1.16619]
[1727076520206,0.37796,2645.6,2645.4,40.8]
[1727076520404,0.37796,2645.6,2645.5,0.3672]
[1727076525902,0.3818,2645.8,2645.5,0.3672]
[1727076526099,0.37796,2645.7,2645.5,0.3672]
[1727076527899,0.37796,2645.6,2645.5,0.3672]
[1727076529599,0.37796,2645.7,2645.5,0.3672]
[1727076531197,0.3818,2645.8,2645.5,0.3672]
[1727076531198,0.75974,2645.8,2645.5,0.3672]
[1727076531393,0.3818,2645.8,2645.5,0.3672]
[1727076531801,0.75974,2645.8,2645.5,1.35835256]
[1727076532005,0.75974,2645.8,2645.5,0.3672]
[1727076532406,0.75974,2645.8,2645.5,1.35835256]
[1727076533703,0.3818,2645.8,2645.5,1.35835256]
[1727076533902,0.75973,2645.8,2645.5,1.35835256]
[1727076534807,0.75973,2645.8,2645.6,0.99115256]
[1727076535009,0.37793,2645.9,2645.6,0.99115256]
[1727076535207,0.37793,2645.9,2645.7,0.3796]
[1727076535808,0.97663142,2646.1,2645.8,2.07]
[1727076535809,0.3779,2646.1,2645.8,2.07]
[1727076536006,0.3779,2646.1,2645.8,3.43045256]
[1727076537417,3.2078,2646.2,2645.8,1.36045256]
[1727076538211,0.37791,2646.0,2645.8,1.36045256]
[1727076538605,0.37792,2645.9,2645.8,1.36045256]
[1727076538802,0.76672,2645.9,2645.8,0.98961883]
[1727076539105,0.76672,2645.9,2645.7,1.36921883]
[1727076539511,0.3888,2645.9,2645.7,1.36921883]
[1727076539712,0.3779,2646.1,2645.8,0.98961883]
[1727076540412,3.5966,2646.2,2645.8,3.43754883]
[1727076540708,3.97448,2646.2,2645.9,0.98961883]
[1727076540901,3.5966,2646.2,2646.0,0.3882]
[1727076541100,3.97448,2646.2,2646.0,1.37781883]
[1727076541512,3.97448,2646.2,2646.0,0.3882]
[1727076541816,0.37789,2646.1,2646.0,0.3882]
[1727076542009,3.97448,2646.2,2646.0,0.3882]
[1727076543513,3.97448,2646.2,2646.0,0.7515]
[1727076543714,3.5966,2646.2,2646.0,0.7515]
[1727076543910,1.11494,2646.5,2646.1,2.18139075]
[1727076544114,8.61684637,2646.8,2646.2,0.98961883]
[1727076544115,0.97663142,2646.7,2646.2,0.98961883]
[1727076544418,0.37783,2646.6,2646.2,3.05961883]
[1727076544819,0.37784,2646.5,2646.2,3.05961883]
[1727076545116,0.37784,2646.5,2646.2,2.07]
[1727076546609,0.37785,2646.4,2646.1,1.38391883]
[1727076546909,3.2078,2646.5,2646.1,0.3943]
[1727076547107,0.37785,2646.4,2646.1,0.3943]
[1727076547504,3.58564,2646.5,2646.1,0.3943]
[1727076547712,0.37785,2646.4,2646.1,0.3943]
[1727076547916,0.37786,2646.3,2646.1,0.3943]
[1727076548305,0.37787,2646.3,2646.1,0.3943]
[1727076548911,3.2078,2646.5,2646.1,0.77218]
[1727076549115,3.2078,2646.5,2646.2,2.07]
[1727076549714,3.58564,2646.5,2646.2,2.07]
[1727076549921,3.2078,2646.5,2646.2,2.07]
[1727076550117,3.58564,2646.5,2646.2,2.07]
[1727076550621,0.37784,2646.5,2646.2,2.07]
[1727076553415,0.37785,2646.4,2646.1,0.3943]
[1727076554019,0.97663142,2646.9,2646.3,2.07]
[1727076554224,1.95326285,2647.2,2646.8,5.2778]
[1727076554225,0.37775,2647.1,2646.8,5.2778]
[1727076554520,0.37776,2647.0,2646.8,3.5786]
[1727076554836,0.37778,2646.9,2646.8,0.3708]
[1727076555026,0.3989,2646.9,2646.5,1.72981883]
[1727076555229,0.37782,2646.6,2646.5,0.7402]
[1727076555533,0.37782,2646.6,2646.3,40.8]
[1727076555534,0.37783,2646.6,2646.3,40.8]
[1727076556634,0.37784,2646.5,2646.2,0.7402]
[1727076557228,0.3938,2646.4,2646.2,0.7402]
[1727076557721,0.3938,2646.4,2646.2,2.8102]
[1727076557925,6.987,2646.3,2646.0,0.98961883]
[1727076558122,6.987,2646.3,2645.6,2.46419473]
[1727076558123,3.7792,2646.2,2645.5,1.76431883]
[1727076558314,3.986,2646.3,2645.5,1.76431883]
[1727076558514,3.986,2646.3,2645.4,4.69460275]
[1727076558515,3.2078,2645.7,2645.4,0.98961883]
[1727076558718,3.2078,2645.7,2645.2,0.391]
[1727076558719,0.37798,2645.5,2645.2,0.391]
[1727076558926,0.378,2645.4,2645.1,6.0525]
[1727076559126,0.378,2645.4,2645.1,3.9825]
[1727076559715,0.378,2645.4,2645.1,44.7825]
[1727076559922,0.37798,2645.5,2645.1,44.7825]
[1727076563518,0.37799,2645.4,2645.1,44.7825]
[1727076564124,0.37799,2645.4,2645.1,3.9825]
[1727076564423,1.172,2645.6,2645.0,1.14627506]
[1727076564424,0.37803,2645.1,2645.0,1.14627506]
[1727076564826,4.15883,2645.1,2645.0,1.14627506]
[1727076567227,3.7808,2645.1,2645.0,1.14627506]
[1727076567538,4.15883,2645.1,2644.8,2.07]
[1727076567725,0.37803,2645.1,2644.8,2.07]
[1727076569130,0.37805,2645.0,2644.8,2.07]
[1727076569320,0.37805,2645.0,2644.7,0.7355]
[1727076569321,0.75155,2645.0,2644.7,0.7355]
[1727076569728,0.3735,2645.0,2644.7,0.7355]
[1727076572227,0.75155,2645.0,2644.7,0.7355]
[1727076573625,0.3735,2645.0,2644.7,0.7355]
[1727076573828,0.75155,2645.0,2644.7,0.7355]
[1727076577232,0.37807,2644.9,2644.7,0.7355]
[1727076577433,0.37808,2644.8,2644.7,0.7355]
[1727076578132,0.3627,2644.9,2644.7,0.7355]
[1727076579129,0.74076,2644.9,2644.7,0.7355]
[1727076579838,0.37808,2644.8,2644.7,0.7355]
[1727076580138,3.7808,2644.8,2644.0,3.2078]
[1727076580336,5.2778,2644.5,2644.1,0.3808]
[1727076580538,0.3625,2644.4,2644.1,0.3808]
[1727076580725,0.731,2644.4,2644.1,0.3808]
[1727076581129,0.37815,2644.3,2644.1,0.3808]
[1727076581534,0.37816,2644.2,2644.1,0.3808]
[1727076581843,0.37818,2644.1,2644.0,0.3648]
[1727076582327,5.8524,2644.1,2643.4,3.2078]
[1727076582527,0.37825,2643.7,2643.5,0.3874]
[1727076582831,3.2078,2643.7,2643.2,0.7932]
[1727076583140,0.37826,2643.6,2643.2,1.1806]
[1727076583630,3.58604,2643.7,2643.2,1.1806]
[1727076584030,0.37823,2643.8,2643.2,1.1806]
[1727076584227,0.37824,2643.7,2643.2,1.1806]
[1727076584934,3.6056,2644.0,2643.2,1.1806]
[1727076585440,0.37823,2643.8,2643.2,1.1806]
[1727076586035,3.6056,2644.0,2643.5,2.07]
[1727076586234,0.37819,2644.0,2643.5,2.07]
[1727076586636,9.8621,2644.3,2643.5,2.07]
[1727076586637,0.37821,2643.9,2643.5,2.07]
[1727076586937,0.37821,2643.9,2643.6,0.3803]
[1727076587340,0.94541,2644.2,2643.6,0.3803]
[1727076587641,3.2078,2644.0,2643.6,0.3803]
[1727076587842,0.37821,2643.9,2643.6,0.3803]
[1727076588645,0.37821,2643.9,2643.7,0.3723]
[1727076590741,0.3782,2644.0,2643.7,0.3723]
[1727076591447,0.37817,2644.2,2643.7,0.3723]
[1727076591631,0.37817,2644.2,2643.7,0.7557]
[1727076592031,0.37817,2644.2,2643.8,40.8]
[1727076592743,3.2078,2644.3,2643.8,43.24822]
[1727076592935,0.3857,2644.4,2643.8,43.24821]
[1727076593743,0.76383,2644.4,2643.8,43.24821]
[1727076595230,0.37815,2644.3,2643.8,42.87]
[1727076596241,3.97164,2644.4,2643.8,43.24821]
[1727076597244,0.37815,2644.3,2643.8,43.24821]
[1727076597540,0.37815,2644.3,2643.8,42.87]
[1727076599545,3.5935,2644.4,2643.9,0.3782]
[1727076599851,0.76383,2644.4,2643.8,2.44821]
[1727076600235,0.76383,2644.4,2643.9,40.8]
[1727076600236,0.3857,2644.4,2643.9,40.8]
[1727076600433,0.37822,2643.8,2643.7,0.3723]
[1727076600635,2.44821,2643.9,2643.7,0.3723]
[1727076600835,0.37821,2643.9,2643.7,0.3723]
[1727076601445,4.9471,2644.3,2643.7,0.3723]
[1727076601639,0.37818,2644.1,2643.7,0.7331]
[1727076601837,4.9471,2644.3,2643.8,2.07]
[1727076602039,2.07,2644.2,2643.7,3.9409]
[1727076602240,0.37822,2643.8,2643.7,0.3723]
[1727076603238,0.37821,2643.9,2643.7,0.3723]
[1727076603455,3.5956,2644.1,2643.7,0.3723]
[1727076603636,3.5956,2644.1,2643.7,0.7501]
[1727076603840,0.37819,2644.0,2643.7,0.7501]
[1727076604144,3.97378,2644.1,2643.7,0.7501]
[1727076604549,3.2078,2644.1,2643.7,2.8201]
[1727076604748,3.58592,2644.5,2644.0,2.07]
[1727076604949,3.58593,2644.5,2644.1,0.3665]
[1727076605249,3.2078,2644.5,2644.2,0.3694]
[1727076605441,3.2078,2644.5,2644.2,0.7472]
[1727076605641,0.37814,2644.4,2644.2,0.7472]
[1727076605949,3.2078,2644.5,2644.2,0.7472]
[1727076606247,3.2078,2644.5,2644.2,2.8172]